[Event "II Llinars Open 2022"]
[Site "Llinars del Valles"]
[Date "2022.06.30"]
[Round "6.8"]
[White "Jove Albaiges, Guillem"]
[Black "Prats Safont, Sergi"]
[Result "0-1"]
[ECO "E05"]
[WhiteElo "1876"]
[BlackElo "2206"]
[Annotator "RC"]
[PlyCount "96"]
[EventDate "2022.06.24"]
[EventType "swiss"]
[EventCountry "ESP"]
[SourceTitle "playchess.com"]
[Source "ChessBase"]
[SourceQuality "1"]
[TimeControl "5400+30"]

1. d4 {[%emt 0:00:02]} Nf6 {[%emt 0:00:12]} 2. c4 {[%emt 0:00:10]} e6 {[%emt 0:00:07]} 3. g3 {[%emt 0:00:18]} d5 {[%emt 0:00:21]} 4. Nf3 {[%emt 0:00:24]} Be7 {[%emt 0:00:15]} 5. Bg2 {[%emt 0:00:35]} O-O {[%emt 0:00:09]} 6. O-O {[%emt 0:00:40]} dxc4 {[%emt 0:00:15]} 7. Ne5 {[%emt 0:01:04]} c5 {[%emt 0:01:43]} 8. dxc5 {[%emt 0:04:10]} Qc7 {[%emt 0:00:15]} 9. Nxc4 {[%emt 0:01:23]} Qxc5 {[%emt 0:01:57]} 10. b3 {[%emt 0:03:13]} Rd8 {[%emt 0:00:31]} 11. Qc2 {[%emt 0:00:32]} Nc6 {[%emt 0:09:27]} 12. Ba3 {[%emt 0:17:05]} Nb4 {[%emt 0:01:48]} 13. Bxb4 {[%emt 0:00:15]} Qxb4 {[%emt 0:00:07]} 14. Nc3 {[%emt 0:01:23]} Nd5 {[%emt 0:08:37]} 15. Ne4 {[%emt 0:04:36]} f5 {[%emt 0:02:53]} 16. a3 {[%emt 0:05:42]} Qb5 {[%emt 0:00:20]} 17. Ned2 {[%emt 0:00:12]} Bf6 {[%emt 0:30:10]} 18. Rae1 {[%emt 0:02:29]} Ne7 {[%emt 0:02:04]} 19. e4 {[%emt 0:09:36]} Nc6 {[%emt 0:01:12]} 20. Kh1 {[%emt 0:15:27]} Nd4 {[%emt 0:01:39]} 21. Qb1 {[%emt 0:01:06]} a5 {[%emt 0:03:14]} 22. e5 {[%emt 0:11:47]} Be7 {[%emt 0:00:59]} 23. Re3 {[%emt 0:00:20]} Bd7 {[%emt 0:02:40]} 24. Nf3 {[%emt 0:01:54]} Bc6 {[%emt 0:03:00]} 25. Nxd4 {[%emt 0:00:47]} Rxd4 {[%emt 0:01:06]} 26. Bxc6 {[%emt 0:01:56]} Qxc6+ {[%emt 0:00:15]} 27. Kg1 {[%emt 0:00:08]} b5 {[%emt 0:01:03]} 28. Qb2 {[%emt 0:01:52]} Bc5 {[%emt 0:02:23]} 29. Nxa5 {[%emt 0:01:20]} Qd5 {[%emt 0:03:12]} 30. Re2 {[%emt 0:02:00]} Rd1 {[%emt 0:08:10]} 31. Rxd1 {[%emt 0:01:09]} Qxd1+ {[%emt 0:00:05]} 32. Kg2 {[%emt 0:00:04]} Bd4 {[%emt 0:02:01]} 33. Qa2 {[%emt 0:01:06]} Rxa5 {[%emt 0:00:39]} 34. b4 {[%emt 0:00:01]} Ra6 {[%emt 0:00:15]} 35. Rd2 {[%emt 0:00:04]} Qa1 {[%emt 0:01:06]} 36. Qc2 {[%emt 0:00:39]} Qc3 {[%emt 0:00:41]} 37. Qd1 {[%emt 0:00:14]} Qc6+ {[%emt 0:02:03]} 38. Kg1 {[%emt 0:00:51]} Bxe5 {[%emt 0:01:14]} 39. Rd8+ {[%emt 0:03:49]} Kf7 {[%emt 0:00:04]} 40. Qd3 {[%emt 0:01:37]} Bf6 {[%emt 0:02:23]} 41. Rb8 {[%emt 0:00:26]} Rb6 {[%emt 0:01:14]} 42. Rxb6 {[%emt 0:00:10]} Qxb6 {[%emt 0:00:04]} 43. Qd7+ {[%emt 0:00:00]} Be7 {[%emt 0:01:41]} 44. a4 {[%emt 0:00:24]} bxa4 {[%emt 0:00:21]} 45. Qxa4 {[%emt 0:00:02]} Qxb4 {[%emt 0:00:12]} 46. Qd7 {[%emt 0:00:11]} Qd6 {[%emt 0:00:12]} 47. Qb7 {[%emt 0:00:11]} Qd1+ {[%emt 0:00:05]} 48. Kg2 {[%emt 0:00:05]} Qd5+ {[%emt 0:00:03]} 0-1

[Event "II Llinars Open 2022"]
[Site "Llinars del Valles"]
[Date "2022.07.01"]
[Round "7.1"]
[White "Garcia Ramos, Daniel"]
[Black "Narciso Dublan, Marc"]
[Result "1/2-1/2"]
[ECO "A41"]
[WhiteElo "2441"]
[BlackElo "2464"]
[Annotator "TA"]
[PlyCount "48"]
[EventDate "2022.06.24"]
[EventType "swiss"]
[EventCountry "ESP"]
[SourceTitle "playchess.com"]
[Source "ChessBase"]
[SourceQuality "1"]
[TimeControl "5400+30"]

{[%evp 14,48,24,25,24,25,18,13,25,13,16,8,0,5,0,15,16,0,21,0,14,0,30,37,30,20,52,49,49,49,49,45,45,42,43,13,27]} 1. c4 {[%emt 0:00:03]} e5 {[%emt 0:00:43]} 2. Nc3 {[%emt 0:00:10]} Nc6 {[%emt 0:00:24]} 3. Nf3 {[%emt 0:02:35]} g6 {[%emt 0:00:29]} 4. e3 {[%emt 0:00:30][%cal Be2e3,Be3d4,Bd4d5][%mdl 32]} d6 {[%emt 0:01:32]} 5. d4 {[%emt 0:00:18]} exd4 {[%emt 0:00:17]} 6. exd4 {[%emt 0:00:14]} Bg4 {[%emt 0:00:42]} 7. Be2 {[%emt 0:00:34]} Bg7 {[%emt 0:00:17]} 8. O-O {[%emt 0:00:30]} Nge7 {[%emt 0:01:21][%cal Bg8e7,Be7f5,Bf5d4][%mdl 32] A41: 1 d4 d6: Tartakower System and Modern Defence.} 9. d5 {[%emt 0:05:50]} Bxf3 {[%emt 0:00:49]} 10. Bxf3 {[%emt 0:00:05]} ({Reject} 10. gxf3 Nd4 $15) 10... Ne5 {[%emt 0:00:13]} 11. Be2 {[%emt 0:07:57]} O-O {[%emt 0:00:48]} 12. Bd2 {[%emt 0:01:50]} Nf5 {[%emt 0:08:46]} 13. Re1 {[%emt 0:04:25] [#]} c5 $146 {[%emt 0:04:36]} ({Predecessor:} 13... Re8 14. Rc1 Nd4 15. Be3 Nxe2+ 16. Qxe2 a6 17. Ne4 h6 18. h3 Qh4 {0-1 (39) Elisei,B (1889)-Salati,P (2159) ICCF email 2012}) 14. dxc6 {[%emt 0:05:40]} bxc6 {[%emt 0:01:07]} 15. Rc1 {[%emt 0:09:25]} Re8 {[%emt 0:20:44]} 16. b3 {[%emt 0:09:09]} a6 {[%emt 0:13:12]} 17. Bf4 {[%emt 0:07:33]} Nd4 {[%emt 0:03:16][%cal Oe8e6]} 18. Qd2 {[%emt 0:04:18]} ({Avoid the trap} 18. Qxd4 $2 Nf3+ $1 {[%mdl 512]} 19. Bxf3 Rxe1+ 20. Rxe1 Bxd4 $19) 18... Qa5 {[%emt 0:07:13][%cal Oe8e6]} 19. Kf1 {[%emt 0:02:27]} ({Wrong is} 19. Qxd4 $2 {[#]} Nf3+ $1 {[%mdl 512]} 20. gxf3 Bxd4 $19) 19... Nxe2 {[%emt 0:12:34]} 20. Rxe2 {[%emt 0:01:08]} Re6 {[%emt 0:01:14]} 21. Ne4 {[%emt 0:12:04][%csl LRa5,LRd6]} Qxd2 {[%emt 0:00:42]} 22. Rxd2 {[%emt 0:00:05]} Bf8 {[%emt 0:00:30]} 23. f3 {[%emt 0:01:41]} f5 $1 {[%emt 0:00:43]} 24. Nf2 {[%emt 0:02:50]} Rae8 {[%emt 0:03:39] Weighted Error Value: White=0.07 (flawless) /Black=0.06 (flawless)} 1/2-1/2

[Event "II Llinars Open 2022"]
[Site "Llinars del Valles"]
[Date "2022.07.01"]
[Round "7.2"]
[White "Serrano Batova, Vicent"]
[Black "Ayats Llobera, Gerard"]
[Result "0-1"]
[ECO "D05"]
[WhiteElo "1992"]
[BlackElo "2423"]
[Annotator "TA"]
[PlyCount "56"]
[EventDate "2022.06.24"]
[EventType "swiss"]
[EventCountry "ESP"]
[SourceTitle "playchess.com"]
[Source "ChessBase"]
[SourceQuality "1"]
[TimeControl "5400+30"]

{[%evp 16,56,6,0,0,-2,-5,0,0,-24,0,-28,-12,-32,-29,-28,-27,-35,-44,-55,-64,-60,-67,-69,-35,-65,-62,-69,-57,-95,-71,-85,-55,-82,-80,-192,-149,-255,-243,-492,-537,-655,-567]} 1. d4 {[%emt 0:00:03]} Nf6 {[%emt 0:01:01]} 2. Nf3 {[%emt 0:00:13]} e6 {[%emt 0:00:01]} 3. e3 {[%emt 0:00:11]} d5 {[%emt 0:00:04]} 4. Bd3 {[%emt 0:00:05]} c5 {[%emt 0:00:13]} 5. b3 {[%emt 0:00:01]} Nc6 {[%emt 0:00:06]} 6. Bb2 {[%emt 0:00:03]} Bd6 {[%emt 0:00:04]} 7. Nbd2 {[%emt 0:00:06]} O-O {[%emt 0:00:07] 7...Qe7 is vanishing.} 8. O-O {[%emt 0:00:12]} b6 {[%emt 0:00:03]} 9. Ne5 {[%emt 0:00:07]} Bb7 {[%emt 0:00:03] D05: Colle System with ...e6.} 10. f4 {[%emt 0:00:04]} Rc8 {[%emt 0:00:06]} 11. a3 {[%emt 0:00:03]} Ne7 {[%emt 0:00:04] The position is equal.} 12. Qf3 {[%emt 0:00:03] Against Ne4 The main line 12.Qf3 scores better than 12.Qe2.} b5 {[%emt 0:00:05] [#] Hoping for ...c4.} 13. dxc5 {[%emt 0:00:04]} (13. c3 $5 {[%cal Rd3b5]}) 13... Bxc5 {[%emt 0:00:06][%cal Of6e4]} 14. b4 {[%emt 0:00:04]} ({Avoid the trap} 14. Bxb5 $2 Qb6 15. Rfe1 Qxb5 $19) 14... Bb6 {[%emt 0:00:02][%cal Of6e4]} 15. Nb3 {[%emt 0:00:10]} Ne4 {[%emt 0:00:56]} 16. Bd4 {[%emt 0:01:00]} f6 {[%emt 0:00:06]} 17. Bxb6 {[%emt 0:08:26]} axb6 {[%emt 0:00:01]} (17... Qxb6 $2 18. Nd7 Qc6 19. Nxf8 Rxf8 20. Qe2 $18) 18. Ng4 {[%emt 0:03:39]} Nf5 {[%emt 0:00:02] [#]} 19. Nf2 $146 {[%emt 0:05:07][%cal Rf2e4]} ({Predecessor:} 19. Qh3 Bc6 20. Nf2 Qe7 21. Nd4 Nxd4 22. exd4 f5 23. g4 Bd7 24. g5 h6 {0-1 (24) Opychaneyj,G (800)-Frendzas,P (2541) LSS email 2015}) 19... Rc3 {[%emt 0:00:13]} 20. Qh3 {[%emt 0:05:42]} Qd7 {[%emt 0:04:51]} 21. Rad1 {[%emt 0:25:52] [#] Strongly threatening Bxe4.} Qe7 {[%emt 0:04:07] 0x0.00207cdd6ac8dp-1022s more active pieces.} 22. g4 {[%emt 0:22:50]} Nfd6 {[%emt 0:00:34]} 23. Nd4 {[%emt 0:14:23]} Rxa3 {[%emt 0:03:11]} 24. g5 {[%emt 0:06:46]} f5 {[%emt 0:03:28]} ({Of course not} 24... fxg5 25. Bxe4 dxe4 26. Qxe6+ Rf7 27. Ng4 $11) 25. Nf3 {[%emt 0:01:19]} (25. Nxe4 $17 {was necessary.} fxe4 26. Bxb5) 25... Nc4 {[%emt 0:10:34]} 26. Bxc4 {[%emt 0:00:55]} (26. Nd4 $17) 26... dxc4 $19 {[%emt 0:03:42]} ({Not} 26... bxc4 27. Nxe4 fxe4 28. Ne5 $17) 27. Ne5 $2 {[%emt 0:00:37]} (27. Nxe4 Bxe4 28. Nd4) 27... Nc3 {[%emt 0:01:12][%cal Rc3e2]} 28. Rd2 {[%emt 0:01:56] Prevents Ne2+.} Rd8 {[%emt 0:04:20] Weighted Error Value: White=0.37/Black=0.08 (flawless)} 0-1

[Event "II Llinars Open 2022"]
[Site "Llinars del Valles"]
[Date "2022.07.01"]
[Round "7.3"]
[White "Segura Marsa, Andres"]
[Black "Prats Safont, Sergi"]
[Result "1-0"]
[ECO "B33"]
[WhiteElo "1862"]
[BlackElo "2206"]
[Annotator "RC"]
[PlyCount "59"]
[EventDate "2022.06.24"]
[EventType "swiss"]
[EventCountry "ESP"]
[SourceTitle "playchess.com"]
[Source "ChessBase"]
[SourceQuality "1"]
[TimeControl "5400+30"]

1. e4 {[%emt 0:00:06]} c5 {[%emt 0:00:18]} 2. Nf3 {[%emt 0:00:27]} Nc6 {[%emt 0:00:27]} 3. d4 {[%emt 0:00:58]} cxd4 {[%emt 0:00:07]} 4. Nxd4 {[%emt 0:00:15]} Qb6 {[%emt 0:00:16]} 5. Nb3 {[%emt 0:03:09]} Nf6 {[%emt 0:00:19]} 6. Nc3 {[%emt 0:01:19]} e6 {[%emt 0:00:26]} 7. Be3 {[%emt 0:01:36]} Qc7 {[%emt 0:00:10]} 8. Be2 {[%emt 0:04:52]} Bb4 {[%emt 0:00:52]} 9. Nd2 {[%emt 0:08:13]} Bxc3 {[%emt 0:04:29]} 10. bxc3 {[%emt 0:00:02]} Qe5 {[%emt 0:11:36]} 11. Nc4 {[%emt 0:07:16]} Qxc3+ {[%emt 0:15:21]} 12. Bd2 {[%emt 0:03:36]} Qd4 {[%emt 0:00:11]} 13. c3 {[%emt 0:00:22]} Qc5 {[%emt 0:00:17]} 14. Be3 {[%emt 0:00:20]} Qe7 {[%emt 0:00:46]} 15. Nd6+ {[%emt 0:01:00]} Kf8 {[%emt 0:00:11]} 16. O-O {[%emt 0:14:34]} b6 {[%emt 0:03:35]} 17. Bg5 {[%emt 0:04:52]} h6 {[%emt 0:11:30]} 18. Bh4 {[%emt 0:04:11]} g5 {[%emt 0:10:08]} 19. Bg3 {[%emt 0:06:58]} Kg7 {[%emt 0:03:30]} 20. f4 {[%emt 0:01:49]} Ne8 {[%emt 0:02:11]} 21. f5 {[%emt 0:04:27]} f6 {[%emt 0:04:37]} 22. e5 {[%emt 0:05:35]} Rf8 {[%emt 0:03:44]} 23. Bh5 {[%emt 0:01:20]} Nxd6 {[%emt 0:13:18]} 24. exf6+ {[%emt 0:00:42]} Rxf6 {[%emt 0:02:30]} 25. Bxd6 {[%emt 0:00:15]} Qd8 {[%emt 0:00:06]} 26. fxe6 {[%emt 0:02:36]} dxe6 {[%emt 0:00:10]} 27. Qd3 {[%emt 0:04:22]} Rf5 {[%emt 0:05:39]} 28. g4 {[%emt 0:01:57]} Rf6 {[%emt 0:07:11]} 29. Rxf6 {[%emt 0:01:09]} Qxf6 {[%emt 0:00:07]} 30. Rf1 {[%emt 0:00:12]} 1-0

[Event "II Llinars Open 2022"]
[Site "Llinars del Valles"]
[Date "2022.07.01"]
[Round "7.4"]
[White "Valenzuela Gomez, Fernando"]
[Black "Fanninger, Leon"]
[Result "1/2-1/2"]
[ECO "C78"]
[WhiteElo "2373"]
[BlackElo "2157"]
[Annotator "TA"]
[PlyCount "145"]
[EventDate "2022.06.24"]
[EventType "swiss"]
[EventCountry "ESP"]
[SourceTitle "playchess.com"]
[Source "ChessBase"]
[SourceQuality "1"]
[TimeControl "5400+30"]

{[%evp 24,145,10,17,31,20,36,0,0,29,23,18,0,0,0,-9,0,0,0,0,0,0,0,0,0,0,0,0,0,-31,30,7,178,0,0,0,0,0,0,0,0,0,7,7,32,1,10,8,8,8,4,0,0,-27,0,0,0,-31,0,0,0,-21,-4,-63,-55,-189,-190,-934,-85,-85,-85,-85,-85,-85,-55,-55,-55,-55,-55,-55,-55,-63,-44,-51,-33,-43,-33,-43,-43,-43,-43,-43,-43,-43,-43,-43,-43,-43,-43,-43,-43,-43,-43,-43,-43,-43,-29,-29,-28,-28,-3,-29,-3,-3,-3,-3,-3,-3,0,0,0,0,0,0]} 1. e4 {[%emt 0:10:26]} e5 {[%emt 0:00:14]} 2. Nf3 {[%emt 0:00:06]} Nc6 {[%emt 0:00:11]} 3. Bb5 {[%emt 0:00:08]} a6 {[%emt 0:00:19]} 4. Ba4 {[%emt 0:00:04]} Nf6 {[%emt 0:00:13]} 5. O-O {[%emt 0:00:15]} b5 {[%emt 0:00:12]} 6. Bb3 {[%emt 0:00:12]} Bc5 {[%emt 0:00:18]} 7. c3 {[%emt 0:00:10]} d6 {[%emt 0:00:32]} 8. d4 {[%emt 0:00:19]} Bb6 {[%emt 0:00:46]} 9. Be3 {[%emt 0:00:50]} O-O {[%emt 0:02:39]} 10. h3 {[%emt 0:08:45]} Bb7 {[%emt 0:07:33]} 11. Nbd2 {[%emt 0:04:37]} h6 {[%emt 0:10:06]} 12. Re1 {[%emt 0:00:24]} exd4 {[%emt 0:09:59]} 13. cxd4 {[%emt 0:00:07]} Na5 {[%emt 0:01:40] C78: Ruy Lopez: Archangelsk and Möller Defences.} 14. Bc2 {[%emt 0:00:50]} Re8 {[%emt 0:01:06][%cal Rf6e4]} 15. d5 {[%emt 0:01:03]} c6 {[%emt 0:05:27]} 16. b4 {[%emt 0:05:33]} Nc4 {[%emt 0:01:46]} 17. Nxc4 {[%emt 0:01:59]} bxc4 {[%emt 0:00:01]} 18. Ba4 {[%emt 0:00:28]} Rc8 {[%emt 0:06:03]} 19. Nd4 {[%emt 0:13:28][%cal Rd5c6]} Bxd4 {[%emt 0:25:23]} ({Don't do} 19... cxd5 20. Bxe8 Nxe8 21. exd5 $16) ({Resist} 19... Nxe4 20. dxc6 Ba8 21. c7 Qxc7 22. Bxe8 Rxe8 23. Nf5 $14) 20. Bxd4 {[%emt 0:05:12]} Rxe4 {[%emt 0:00:02]} 21. Rxe4 {[%emt 0:09:54]} Nxe4 {[%emt 0:00:02]} 22. Qg4 {[%emt 0:01:59][%csl Gd4,LRe4,LRg7][%cal Rg4g7]} Nf6 {[%emt 0:03:48]} 23. Bxf6 {[%emt 0:00:12]} Qxf6 {[%emt 0:00:05]} 24. Re1 {[%emt 0:00:09] [#] Strongly threatening dxc6.} Qd8 $146 {[%emt 0:11:22]} (24... cxd5 $2 25. Qd7 $18) ({Predecessor:} 24... Rf8 25. dxc6 Qc3 26. Re3 Qc1+ 27. Kh2 Bc8 28. Qd4 Qf1 29. Rg3 g6 30. Bc2 Qe2 {1-0 (37) Lindh,F (2244)-Hector,J (2493) Vasteras 2015}) 25. Qxc4 {[%emt 0:00:52][%cal Rd5c6]} cxd5 {[%emt 0:00:31]} 26. Qd4 {[%emt 0:00:05] And now Re8+ would win.} Qg5 {[%emt 0:02:32]} (26... Rc4 $15 27. Qd2 Re4) 27. h4 $11 {[%emt 0:00:57]} Qf5 {[%emt 0:03:21]} (27... Qf6 $1 $11 {and Black is okay.} 28. Qxf6 gxf6) 28. Qa7 $2 {[%emt 0:01:32]} (28. Qb6 $18 Ba8 29. Qxa6) 28... Bc6 {[%emt 0:00:44]} 29. Bxc6 {[%emt 0:06:56]} Rxc6 {[%emt 0:00:00][%mdl 4096] Endgame KQR-KQR} 30. Qa8+ {[%emt 0:00:14]} Rc8 {[%emt 0:00:02]} 31. Qxa6 {[%emt 0:00:34]} Rc2 {[%emt 0:00:32]} 32. Qa7 {[%emt 0:01:13]} Rb2 {[%emt 0:02:46]} 33. a3 {[%emt 0:01:15]} Qf6 {[%emt 0:02:33]} 34. Rf1 {[%emt 0:07:19] Black should prevent Qa8+.} d4 {[%emt 0:00:17]} 35. Qa8+ {[%emt 0:00:11]} Kh7 {[%emt 0:00:03]} 36. Qe4+ {[%emt 0:00:23]} Kg8 {[%emt 0:00:33]} 37. Qd3 {[%emt 0:01:45]} Qxh4 {[%emt 0:00:27]} 38. b5 {[%emt 0:00:41]} Qg5 {[%emt 0:01:46]} (38... d5 $5 {[%cal Rh4e4]}) 39. Rb1 {[%emt 0:05:06]} Qf4 {[%emt 0:02:14]} 40. Rf1 {[%emt 0:03:37]} Qe5 {[%emt 0:00:39]} (40... d5 $5 {[%cal Rf4e4]}) 41. a4 {[%emt 0:00:09]} Qc5 {[%emt 0:00:37]} 42. Rd1 {[%emt 0:03:03]} (42. Rb1 $5 {[%cal Rb1b2]}) 42... Rb4 {[%emt 0:00:50]} 43. Ra1 {[%emt 0:01:19]} (43. Qe4 $1 $11) 43... Qc3 $36 {[%emt 0:00:26][%mdl 2048] Black is more active.} 44. Qd1 {[%emt 0:00:40]} (44. Qxc3 $15 dxc3 45. Rc1) 44... d3 $1 $19 {[%emt 0:00:14] White must now prevent ...d2.} 45. a5 $2 {[%emt 0:01:15] [#]} (45. Rc1 Qd4 46. Qf3) 45... Rxb5 $2 {[%emt 0:00:16]} (45... d2 $1 $19 {is more deadly. ...Re4 is the strong threat.} 46. Ra2 {[#]} Rb1 $3 {[%mdl 512]} 47. Qxb1 Qc1+ 48. Qxc1 dxc1=Q+ 49. Kh2 Qb1) 46. a6 $17 {[%emt 0:00:33]} Rb8 {[%emt 0:00:45]} 47. a7 {[%emt 0:01:23]} Ra8 {[%emt 0:00:01]} 48. Ra2 {[%emt 0:01:01]} d2 {[%emt 0:00:27]} (48... d5 {seems wilder.} 49. Qb1 Qc7 50. Qxd3 Rxa7 51. Rxa7 Qxa7 52. Qxd5 Qe7) 49. Qxd2 {[%emt 0:00:57]} Qxd2 {[%emt 0:00:08]} 50. Rxd2 {[%emt 0:00:05]} Rxa7 {[%emt 0:00:01]} 51. Rxd6 $15 {[%emt 0:00:01] KR-KR} Kh7 {[%emt 0:02:23]} 52. g3 {[%emt 0:00:05]} Re7 {[%emt 0:00:20]} 53. Kg2 {[%emt 0:00:01]} Re6 {[%emt 0:00:02]} 54. Rd7 {[%emt 0:00:06]} Kg6 {[%emt 0:00:17]} 55. Rd5 {[%emt 0:00:04]} f5 {[%emt 0:00:25]} 56. Kf3 {[%emt 0:00:11]} Kf6 {[%emt 0:00:05]} 57. Ra5 {[%emt 0:00:05]} Rb6 {[%emt 0:00:13]} 58. Rc5 {[%emt 0:00:04]} Rb3+ {[%emt 0:00:10]} 59. Kg2 {[%emt 0:00:02]} Kg5 {[%emt 0:00:18]} 60. Rc7 {[%emt 0:00:01]} g6 {[%emt 0:00:21]} 61. Rc6 {[%emt 0:00:02]} Rb2 {[%emt 0:00:28]} 62. Rc4 {[%emt 0:00:16]} Rb6 {[%emt 0:00:39]} 63. Ra4 {[%emt 0:00:03]} Kf6 {[%emt 0:00:23]} 64. Kf3 {[%emt 0:00:04]} g5 {[%emt 0:00:12]} 65. Ra5 {[%emt 0:00:11]} Rb3+ {[%emt 0:00:21]} 66. Kg2 {[%emt 0:00:02]} g4 {[%emt 0:02:05]} 67. Ra4 {[%emt 0:00:11]} Rf3 {[%emt 0:00:39]} 68. Ra6+ {[%emt 0:00:18] The position is equal.} Kg5 {[%emt 0:00:02]} 69. Ra5 {[%emt 0:00:12]} h5 {[%emt 0:01:01]} 70. Ra8 {[%emt 0:00:02]} Rb3 {[%emt 0:01:27]} 71. Rg8+ {[%emt 0:00:03]} Kh6 {[%emt 0:00:22]} 72. Rh8+ {[%emt 0:00:02]} Kg6 {[%emt 0:00:05]} 73. Rg8+ {[%emt 0:00:10] Weighted Error Value: White=0.36/Black=0.27 (precise)} 1/2-1/2

[Event "II Llinars Open 2022"]
[Site "Llinars del Valles"]
[Date "2022.07.01"]
[Round "7.5"]
[White "Uber Gracia, Hugo"]
[Black "Jimenez Ruano, Adrian"]
[Result "0-1"]
[ECO "C54"]
[WhiteElo "1915"]
[BlackElo "2263"]
[Annotator "TA"]
[PlyCount "66"]
[EventDate "2022.06.24"]
[EventType "swiss"]
[EventCountry "ESP"]
[SourceTitle "playchess.com"]
[Source "ChessBase"]
[SourceQuality "1"]
[TimeControl "5400+30"]

{[%evp 14,66,21,10,21,12,10,8,1,0,0,-11,0,0,-13,-11,-2,-33,-23,-163,-62,-200,-121,-125,-72,-79,-85,-60,-59,-136,-155,-147,-121,-127,-67,-129,-127,-107,-85,-518,-514,-781,-782,-742,-511,-738,-726,-29992,-29960,-29993,-29989,-29994,-29986,-29989,-29986]} 1. e4 {[%emt 0:00:31]} e5 {[%emt 0:03:15]} 2. Nf3 {[%emt 0:00:48]} Nc6 {[%emt 0:00:06]} 3. Bc4 {[%emt 0:00:13]} Bc5 {[%emt 0:00:11]} 4. O-O {[%emt 0:00:35]} Nf6 {[%emt 0:00:03]} 5. d3 {[%emt 0:00:25]} d6 {[%emt 0:00:09]} 6. c3 {[%emt 0:00:34]} a6 {[%emt 0:00:05]} 7. a4 {[%emt 0:01:19]} Ba7 {[%emt 0:01:31]} 8. b4 {[%emt 0:01:40]} h6 {[%emt 0:01:32] C54: Giuoco Piano: 4 c3 Nf6, main lines with 5 d4 and 5 d3.} 9. Re1 {[%emt 0:14:31]} O-O {[%emt 0:00:14]} 10. Nbd2 {[%emt 0:02:30]} Ne7 {[%emt 0:01:59] The position is equal.} 11. Nf1 {[%emt 0:07:12]} c6 {[%emt 0:01:38]} 12. Ng3 {[%emt 0:09:31]} d5 {[%emt 0:07:10]} (12... Qb6 13. Be3 Qc7 14. Bxa7 Rxa7 15. a5 $14) 13. Bb3 {[%emt 0:09:56]} Ng6 {[%emt 0:00:18]} 14. h3 {[%emt 0:03:34]} Re8 {[%emt 0:02:42]} ({Resist} 14... Qb6 15. Be3 Qc7 16. Bxa7 Rxa7 17. d4 $14) 15. Qc2 {[%emt 0:05:38]} Be6 {[%emt 0:10:57]} 16. Bb2 {[%emt 0:04:17] [#]} (16. exd5 $11 {and White stays safe.} Bxd5 17. Bxd5 cxd5 18. Be3) 16... Qd7 {[%emt 0:03:48] [#]} ({Black should try} 16... Qc8 $1 $19 {[%cal Oe6h3] ...Bxh3! is the strong threat.} 17. exd5 Bxh3) 17. d4 $146 {[%emt 0:07:01]} ({Better is} 17. exd5 $1 $15 Bxd5 18. Bxd5 Nxd5 19. Rad1) ({Predecessor:} 17. exd5 Bxd5 18. Bxd5 cxd5 19. c4 d4 20. Re2 Bb8 21. Bc1 Bd6 22. Bd2 Rac8 23. Rae1 {1-0 (32) Zierk,S (2499)-Kovalev,V (2637) Chess.com INT 2021}) 17... Nxe4 {[%emt 0:04:32]} 18. Nxe4 {[%emt 0:01:43]} dxe4 {[%emt 0:06:15]} (18... Bf5 $142 19. dxe5 Nxe5 20. Nxe5 Rxe5) 19. Bxe6 $17 {[%emt 0:00:43]} Qxe6 {[%emt 0:00:20]} 20. Rxe4 {[%emt 0:09:19]} f5 {[%emt 0:01:35]} 21. Re3 {[%emt 0:02:04]} ({White should play} 21. Rxe5 $1 $15 Nxe5 22. Nxe5) 21... e4 {[%emt 0:02:31]} 22. Rae1 {[%emt 0:02:28]} Bb8 {[%emt 0:05:02]} 23. g3 {[%emt 0:00:49] Inhibits Nf4.} Bc7 {[%emt 0:04:24]} (23... Bd6 $17 24. a5 Kh7) 24. a5 {[%emt 0:01:10]} (24. Nd2 $15) 24... Qd7 {[%emt 0:05:13]} 25. Nd2 {[%emt 0:01:02]} Re7 {[%emt 0:00:28] And now ...f4 would win.} 26. Nb3 $2 {[%emt 0:01:03][%mdl 8192] [#]} (26. R3e2 $17) 26... f4 $1 $19 {[%emt 0:05:07] Threatens to win with ...f3.} 27. Rxe4 {[%emt 0:05:53] [#]} (27. Nc5 $142 Qxh3 28. gxf4) 27... Qxh3 $1 {[%emt 0:00:23][%cal Of4f3]} 28. f3 {[%emt 0:03:09]} Rxe4 {[%emt 0:04:36]} 29. Rxe4 {[%emt 0:02:47]} fxg3 {[%emt 0:00:10] ( -> ...Nh4)} 30. Rg4 {[%emt 0:02:31]} Nh4 {[%emt 0:00:38][%cal Rh4f3] Black mates.} 31. Qe2 {[%emt 0:00:28] [#]} Nxf3+ $1 {[%emt 0:00:02][%mdl 512]} 32. Qxf3 {[%emt 0:00:26]} Qh2+ {[%emt 0:00:01]} 33. Kf1 {[%emt 0:00:29]} Rf8 {[%emt 0:00:01] Weighted Error Value: White=0.90/Black=0.23 (precise)} 0-1